Cogmind - Beta 14 @@@ ROGUE MODE // 2024.12.26 @ 14:33:43 Player: PTS Result: Destroyed by HJ-8GI(R) with Subdweller Laser Performance ------------- Evolutions (0) 0 Regions Visited (2) 400 Robots Destroyed (10) 50 Value Destroyed (125) 125 Prototype IDs (0) 0 Alien Tech Used (0) 0 Bonus (0) 0 TOTAL SCORE: 575 Bonus ------- None Cogmind --------- Core Integrity 0/250 Matter 285/300 Energy 99/100 System Corruption 0% Temperature Cool (12) Movement Core (50) Location -10/Subcaves Parts ------- > --- POWER (1) -------- (None) > --- PROPULSION (2) --- (None) > --- UTILITY (2) ------ (None) > --- WEAPON (2) ------- (None) > --- INVENTORY (5) ---- Light Ion Engine Improved Heat Sink Peak State ------------ > --- POWER ------------ Light Angular Momentum Engine > --- PROPULSION ------- Wheel Wheel > --- UTILITY ---------- Scrap Shield > --- WEAPON ----------- Particle Gun Light Assault Rifle > --- INVENTORY -------- Light Ion Engine Light Ion Engine Improved Heat Sink Mining Laser [Rating: 14] Favorites ----------- Power Light Ion Engine Engine Light Ion Engine Propulsion Wheel Wheel Wheel Utility Improved Terrain Scanner Device Improved Terrain Scanner Storage Small Storage Unit Protection Scrap Shield Weapon Light Assault Rifle Energy Gun Small Laser Ballistic Gun Light Assault Rifle Special Weapon Mining Laser Build | -11 -10 -10 ------- Run | Yrd Mat Sub Slots Evolved . | . . . Power . | . . . Propulsion . | . . . Utility . | . . . Weapon . | . . . Parts Attached 26 | 8 11 7 Power 3 | 1 1 1 Engine 3 | 1 1 1 Core . | . . . Reactor . | . . . Propulsion 10 | 2 5 3 Treads . | . . . Leg . | . . . Wheel 10 | 2 5 3 Hover . | . . . Flight . | . . . Utility 5 | 3 1 1 Device 3 | 2 1 . Storage 1 | 1 . . Processor . | . . . Hackware . | . . . Protection 1 | . . 1 Artifact . | . . . Weapon 8 | 2 4 2 Energy Gun 3 | 1 2 . Energy Cannon . | . . . Ballistic Gun 3 | 1 1 1 Ballistic Cannon . | . . . Launcher . | . . . Special Weapon 2 | . 1 1 Impact Weapon . | . . . Slashing Weapon . | . . . Piercing Weapon . | . . . Special Melee Weapon . | . . . Unidentified Prototypes . | . . . Parts Lost 9 | . 1 8 Power 1 | . . 1 Propulsion 4 | . 1 3 Utility 1 | . . 1 Weapon 3 | . . 3 Highest Loss Streak 6 | . 1 6 To Critical Strikes . | . . . Average Slot Usage (%) 75 | . 81 71 Engine 11 | . 9 12 Wheel 20 | . 22 19 Device 13 | . 28 2 Protection 6 | . . 11 Energy Gun 11 | . 9 13 Ballistic Gun 5 | . 9 2 Special Weapon 4 | . . 8 Peak Build Rating 14 | 9 9 14 Average Rating 7 | 6 7 10 On Entrance 6 | . 9 9 Naked Turns 13 | . . 13 Heaviest Build 31 | 7 9 31 Greatest Support 20 | 20 20 20 Greatest Overweight (x) 3 | . . 3 Average Overweight (x) . | . . 1 Largest Inventory Capacity 8 | 8 5 5 Average Capacity 5 | 5 5 5 Most Carried 5 | 3 5 5 Average Carried 2 | 1 3 2 Final Capacity 5 | 5 5 5 Final Carried 5 | 2 5 2 Class Distribution -------------------- 76% | Mutant 23% | Scavenger-Mutant Dominant Class ---------------- Mutant | -10/Materials Scavenger-Mutant | -10/Subcaves Resources | -11 -10 -10 ----------- Run | Yrd Mat Sub Matter Collected 431 | 262 125 44 Remotely . | . . . Salvage Created 266 | 141 125 . Parts 27 | 22 5 . Haulers Intercepted . | . . . Recyclers Shooed . | . . . Parts Field Recycled . | . . . Retrieved Matter . | . . . Parts Self-Destructed 2 | . . 2 Prevented . | . . . Kills | -11 -10 -10 ------- Run | Yrd Mat Sub Combat Hostiles Destroyed 2 | . 2 . Guns 2 | . 2 . Classes Destroyed 3 | 2 1 . Worker 2 | 2 . . Tunneler 6 | 5 1 . Grunt 2 | . 2 . Best Kill Streak 4 | 4 3 . Combat Bots Only 2 | . 2 . Max Kills in Single Turn 1 | 1 1 . Gunslinging . | . . . Exploded . | . . . Melee . | . . . Uniques/NPCs Destroyed . | . . . Combat | -11 -10 -10 -------- Run | Yrd Mat Sub Hostile Shots Fired 64 | . 15 49 Missed 17 | . 2 15 Damage Taken 908 | . 160 748 Core 270 | . 11 259 Absorbed by Shields . | . . . Core Remaining (%) 100 | 100 . . Volleys Fired 35 | 18 10 7 Largest 2 | 2 2 2 Hottest 165 | 60 100 165 Shots Fired 68 | 36 19 13 Gun 64 | 36 18 10 Cannon . | . . . Launcher . | . . . Special 4 | . 1 3 Kinetic 31 | 18 9 4 Thermal 37 | 18 10 9 Explosive . | . . . Electromagnetic . | . . . Robot Hit Streak 8 | 6 8 5 Robot Miss Streak 2 | 2 2 2 Penetration Max . | . . . Secondary Targets 1 | . 1 . Max Gunslinging Chain 1 | . 1 . Shots Hit Robots 42 | 23 14 5 Core Hits 19 | 12 6 1 Critical Kills . | . . . Critical Parts Destroyed . | . . . Critical Strikes . | . . . Melee Attacks . | . . . Impact . | . . . Slashing . | . . . Piercing . | . . . Sneak Attacks . | . . . Combat Hostiles . | . . . Follow-up Attacks . | . . . Damage Inflicted 429 | 231 140 58 Guns 429 | 231 140 58 Cannons . | . . . Explosions . | . . . Melee . | . . . Ramming . | . . . Kinetic 148 | 74 48 26 Thermal 281 | 157 92 32 Explosive . | . . . Electromagnetic . | . . . Impact . | . . . Slashing . | . . . Piercing . | . . . Highest Corruption . | . . . Average Corruption . | . . . Corruption Purged . | . . . Corruption Blocked . | . . . Overload Shots . | . . . Overflow Damage . | . . . Projectiles . | . . . Explosions . | . . . Melee . | . . . Knockbacks . | . . . Impact . | . . . Kinetic . | . . . Secondary . | . . . Self-Inflicted Damage . | . . . Shots . | . . . Rammed . | . . . Targets Rammed . | . . . Kicked . | . . . Crushed . | . . . Highest Temperature 231 | 40 106 231 Average Temperature 36 | 12 52 60 Received Heat Transfer 581 | . 93 488 Siege Activations . | . . . Robots Corrupted . | . . . Combat Hostiles . | . . . Parts Fried . | . . . Impact Corruptions . | . . . Robots Melted . | . . . Combat Hostiles . | . . . Parts Melted . | . . . Heat Transferred 636 | 350 212 74 Parts Sabotaged . | . . . Parts Stolen . | . . . Parts Stripped . | . . . Power Chain Reactions . | . . . Alert | -11 -10 -10 ------- Run | Yrd Mat Sub Peak Influence 67 | 35 67 . Initial 22 | . 22 . Average 23 | 17 32 . Maximum Alert Level . | . . . Low Security (%) 100 | 100 100 . Level 1 . | . . . Level 2 . | . . . Level 3 . | . . . Level 4 . | . . . Level 5 . | . . . High Security . | . . . Max Security . | . . . Squads Dispatched . | . . . Investigation . | . . . Extermination . | . . . Reinforcement . | . . . Assault . | . . . Garrison . | . . . Intercept . | . . . Searches Triggered . | . . . Construction Impeded . | . . . Haulers Reinforced . | . . . Active Scanning Responses . | . . . Cargo Convoy Interrupts . | . . . Stealth | -11 -10 -10 --------- Run | Yrd Mat Sub Distress Signals . | . . . Communications Jammed . | . . . Distress Signals . | . . . Times Spotted 10 | . 2 8 Peak Tracking Total 6 | . 2 6 Tactical Retreats . | . . . Traps | -11 -10 -10 ------- Run | Yrd Mat Sub Traps Triggered 4 | . 4 . Indirectly . | . . . Trap Hack Attempts . | . . . Triggered . | . . . Disarmed . | . . . Reprogrammed . | . . . Reused . | . . . Traps Extracted . | . . . Installed . | . . . Triggered . | . . . Machines | -11 -10 -10 ---------- Run | Yrd Mat Sub Machines Disabled . | . . . Max in Single Turn . | . . . Machines Repaired . | . . . Machines Dismantled . | . . . Machines Sabotaged . | . . . Overloaded Fab Kills . | . . . Hacking | -11 -10 -10 --------- Run | Yrd Mat Sub Machines Accessed . | . . . Terminals . | . . . Fabricators . | . . . Repair Stations . | . . . Recycling Units . | . . . Scanalyzers . | . . . Garrison Access . | . . . Total Hacks . | . . . Successful . | . . . Failed . | . . . Catastrophic . | . . . Database Lockouts . | . . . Manual . | . . . Terminals . | . . . Fabricators . | . . . Repair Stations . | . . . Recycling Units . | . . . Scanalyzers . | . . . Garrison Access . | . . . Terminal Hacks . | . . . Fabricator Hacks . | . . . Repair Station Hacks . | . . . Recycling Unit Hacks . | . . . Scanalyzer . | . . . Garrison Access Hacks . | . . . Unauthorized Hacks . | . . . Terminals . | . . . Fabricators . | . . . Repair Stations . | . . . Recycling Units . | . . . Scanalyzers . | . . . Garrison Access . | . . . Data Cores Recovered . | . . . Used . | . . . Hacking Detections . | . . . Full Trace Events . | . . . Feedback Events . | . . . Feedback Blocked . | . . . Robot Schematics Acquired . | . . . Robots Built . | . . . Authchips . | . . . Time . | . . . Total Robot Build Rating . | . . . Part Schematics Acquired . | . . . Parts Built . | . . . Authchips . | . . . Time . | . . . Total Part Build Rating . | . . . Parts Repaired . | . . . Time . | . . . Parts Recycled . | . . . Recycled Matter . | . . . Retrieved Matter . | . . . Retrieved Components . | . . . Parts Scanalyzed . | . . . Part Schematics Acquired . | . . . Parts Damaged . | . . . Bothacking | -11 -10 -10 ------------ Run | Yrd Mat Sub Used RIF Installer . | . . . Robots Hacked . | . . . Non-combat . | . . . Combat . | . . . Robot Hacks Applied . | . . . Relay Couplers Released . | . . . Fabnet Peak Effective % . | . . . Robots Rewired . | . . . Allies Hacked . | . . . Hacks Repelled . | . . . Allies | -11 -10 -10 -------- Run | Yrd Mat Sub Total Allies . | . . . Largest Group . | . . . Highest-Rated Group . | . . . Highest-Rated Ally . | . . . Total Orders . | . . . Ally Attacks . | . . . Total Damage . | . . . Kills . | . . . Allies Corrupted . | . . . Allies Melted . | . . . Intel | -11 -10 -10 ------- Run | Yrd Mat Sub Robot Analysis Total . | . . . Derelict Logs Recovered 1 | . . 1 Drone Launches . | . . . Drone Recoveries . | . . . Exploration | -11 -10 -10 ------------- Run | Yrd Mat Sub Turns Passed 635 | 268 159 208 Spaces Moved 368 | 127 71 170 Core 42 | 10 2 30 Treads . | . . . Legs . | . . . Wheels 326 | 117 69 140 Hover . | . . . Flight . | . . . Fastest Speed 50 | 50 50 50 Average Speed 85 | 77 79 94 Slowest Speed 200 | 80 80 200 Overloaded Moves . | . . . Propulsion Burnouts . | . . . Robots Hopped . | . . . Cave-ins Triggered . | . . . Exploration Rate (%) 9 | 6 12 9 Regions Visited 2 Branch Regions 1 Pre-discovered Areas . | . . . Known Exits Taken . | . . . Unknown Exits Taken 2 | 1 1 . Scrap Searched . | . . . Spaces Dug . | . . . Terrain Destroyed . | . . . Melee . | . . . Projectile . | . . . AOE . | . . . Terrain Rammed . | . . . Walls Destroyed . | . . . Machines Disabled . | . . . Actions | -11 -10 -10 --------- Run | Yrd Mat Sub Total 615 | 264 151 200 Wait 160 | 101 50 9 Move 366 | 126 70 170 Hop . | . . . Pick Up 21 | 10 8 3 Fast Attach 5 | . 5 . Attach 15 | 8 3 4 Detach . | . . . Swap 6 | . 3 3 Drop 7 | 1 2 4 Fire 35 | 18 10 7 Melee . | . . . Ram . | . . . Kick . | . . . Crush . | . . . Escape Stasis . | . . . Rewire . | . . . Trap . | . . . Miscellaneous . | . . . Route ------- -11/Scrapyard -10/Materials -10/Subcaves History --------- Turn | Location | Event 43 | -11/Scrapyard | Discovered new exit (range 15) 269 | -11/Scrapyard | Entered Materials 277 | -10/Materials | Discovered new exit (range 15) 337 | -10/Materials | Build established: Mutant 428 | -10/Materials | Entered Subcaves 454 | -10/Subcaves | Learned 4 Materials zone layouts 500 | -10/Subcaves | Ambushed by swarm of Subdwellers 572 | -10/Subcaves | Lost 4 allies 622 | -10/Subcaves | Core integrity fell below 50% 635 | -10/Subcaves | Core integrity fell below 20% 636 | -10/Subcaves | Destroyed by HJ-8GI(R) with Subdweller Laser Last Messages --------------- fellow?" Acquired 3 matter. Acquired Lgt. Angular Momentum Engine. Dropped Lgt. Ion Engine. Wheel destroyed. HJ-8GI(R) affixes Scrap Shield Fragment to Scrap Shield. Lgt. Assault Rifle destroyed. Acquired Wheel. Subatomizers dissect the Imp. Terrain Scanner. Critical hit (Destroy). Scrap Shield destroyed. Subatomizers dissect the Imp. Terrain Scanner. Mining Laser destroyed. Wheel destroyed. Critical hit (Meltdown: +260). Lgt. Angular Momentum Engine destroyed. Wheel destroyed. Particle Gun destroyed. Subatomizers dissect the Imp. Terrain Scanner. Map ----- +----------------------------------------------------+ | ???????????????????????????????"?????????????? | | ??????????????????????????#??????????????????? | | ?????????????????????????????????????????????? | | ????????#????????????????????????????????????? | | ?????????????????????????????????????????????? | | ???????????#?????????????????????????????????? | | ?????????????????????????????????????????????? | | ??????????#????????????????? ???????????????? | | ??????????????????####?????? ???????????????? | | ???????????????############? ???????????????? | | ???????????????##### ##### ? ???????????????? | | ???????????????## ##? ???????????????? | | ??????????????### ! ###? ###????????????? | | ??????????????## ! ##??# ##???????????? | | ??????????????## ##??# #??#????????? | | ??????????????## ##??# #???????????? | | ??????????????### ##??# ##??????????? | | ??????????????#### ##?# #??????????? | | ???????????????### ### #??????????? | | ????????????????## RR ### #?#####????? | | ????????????????## # # ### ##???? | | ????????????????## R ## #???? | | ????????????????# #???? | | ???????????????## ## #???? | | ???????????????# ### #???? | | ???????????????# @ ##### #???? | | ??????????????## ## ###### ## #???? | | ??????????????# ### ##### # ##???? | | ??????????????# #### O ## #????? | | ??????????????## #??## ##???? | | ???????????????## ###?## ### #### #???? | | ????????????????#" #??## ##?###??## ##???? | | ???????????????### ##???####???????## ###??? | | ??????????????## ##???#???????????# #### | | ??????????????# ##???? ###???????## | | ??????????????# #???? #???????# =% | | ??????????????# ####????# ##?????### * | | ??????????????##????????# #?????## ## | | ???????????????????????## #????# ## | | ???????????????????????# ##?### # # | | ??????????????????????# ## ### | | ??????????????????????# % #### | | ?????????????????????? % ## | | ??????????????????????# % | | ???????????????????????# #### #### | | ???????????????????????????????????# ## | | ??????????????????????????????????# ### | | ?????????????????????????????????# % ####?## | | ?????????????????????????????????######?????# | | ????????????????????????????????????????????## | +----------------------------------------------------+ Best States ------------- Heat Dissipation 25 Energy Generation 18 Energy Capacity 150 Matter Stores 286 Matter Capacity 300 Sight Range 16 Terrain Scan Range 16 Terrain Scan Density 10 Armor Coverage 800 Evasion (%) 50 Item Schematics ----------------- None Robot Schematics ------------------ None Fabricated ------------ Nothing Alien Tech Used ----------------- None Achievements -------------- None Challenges ------------ None Game ------ Seed DeepRocketExpander Manual? 0 Play Time 00:10:30 Cumulative 5.4 hours Start 2024.12.26 @ 13:52:59 End 2024.12.26 @ 14:33:43 Sessions 1 Manual Loads 0 Difficulty Rogue Special Mode None Game No. 9 Rogue 9 Adventurer 0 Explorer 0 Win Type - Total 0 Types 0/0/0/0/0/0/0/0/0 Lore% 3 Gallery% 13 Achievement% 12 Wizard Run 0 Options --------- Layout 1 ASCII 0 Keyboard 0 Movement Mouse Keybinds 0 Fullscreen 1 Font 24/Smallcaps Map View 50x35 Zoom Use 0% Tactical HUD 0 Map Filters NONE Filters NONE Steam 1 RUN: cb8337a1-45f9-4c4e-8d1c-68dc5bbc971b